Workbook

Sheet Intro
B1: Corn-Preventing Planting Decision
B2: Version 1.0 2023
B5: Hence Duncan
B6: University of Tennessee
B7: Department of Agricultural and Resource Economics
B9: Student Mentors
B10: Chris Boyer, Professor
B11: University of Tennessee
B12: Department of Agricultural and Resource Economics
B14: S. Aaron Smith, Associate Professor
B15: University of Tennessee
B16: Department of Agricultural and Resource Economics
B26: The University of Tennessee is an EEO/AA/Title VI/Title IX/Section 504/ADA/ADEA institution in the provision of its education and employment programs and services. All qualified applicants will receive equal consideration for employment and admission without regard to race, color, national origin, religion, sex, pregnancy, marital status, sexual orientation, gender identity, age, physical or mental disability, genetic information, veteran status, and parental status.
B32: Grant no. 2021-67023-33819

Sheet yield response (hidden)
B1: Corn | C1: Soybeans | I1: Corn | W1: 0.5
A2: Intercept | B2: 61.7003 | C2: -49.9654 | I2: Random Draw of Coefficients | J2: = | K2: Beta Coefficients | L2: + | M2: Cholesky | P2: * | Q2: Z score | R2: Correlation | W2: 0.55
A3: day | B3: 2.6664 | C3: 1.4556 | I3: =K3+(MMULT(M3:O3,$Q$3:$Q$5)) -> 92.70270138 | K3: 61.7003 | M3: 40.73364703 | N3: 0 | O3: 0 | Q3: =_xll.CUSD($R$3:$T$5) -> 0.7611005555 | R3: 1 | S3: -0.825 | T3: 0.8122 | W3: 0.6
A4: day*day | B4: -0.01465 | C4: -0.00522 | I4: =K4+(MMULT(M4:O4,$Q$3:$Q$5)) -> 2.345375146 | K4: 2.6664 | M4: -0.46215847 | N4: 0.3165589176 | O4: 0 | Q4: =_xll.CUSD($R$3:$T$5) -> 0.09705685913 | R4: -0.825 | S4: 1 | T4: -0.9952 | W4: 0.65
I5: -0.0132416682 | K5: -0.01465 | M5: 0.0018063691 | N5: -0.001279924 | O5: 0.0002117223 | Q5: =_xll.CUSD($R$3:$T$5) -> 0.7449790325 | R5: 0.8122 | S5: -0.9952 | T5: 1 | W5: 0.7
W6: 0.75
I7: Soybeans | W7: 0.8
I8: Random Draw of Coefficients | J8: = | K8: Beta Coefficients | L8: + | M8: Cholesky | P8: * | Q8: Z score | R8: Correlation | W8: 0.85
I9: =K9+(MMULT(M9:O9,$Q$9:$Q$11)) -> -49.25629112 | K9: -49.9654 | M9: 10.27423963 | N9: 0 | O9: 0 | Q9: =_xll.CUSD($R$9:$T$11) -> 0.06901813713 | R9: 1 | S9: -0.9812 | T9: 0.9689
I10: =K10+(MMULT(M10:O10,$Q$9:$Q$11)) -> 1.46161472 | K10: 1.4556 | M10: -0.126753906 | N10: 0.0249689292 | O10: 0 | Q10: =_xll.CUSD($R$9:$T$11) -> 0.5912563558 | R10: -0.9812 | S10: 1 | T10: -0.996
I11: -0.005194917552 | K11: -0.00522 | M11: 0.0003868899 | N11: -3.8455e-05 | O11: 9.13091e-05 | Q11: =_xll.CUSD($R$9:$T$11) -> 0.231267104 | R11: 0.9689 | S11: -0.996 | T11: 1
A13: Corn PD | B13: Corn Expected Yields | C13: Soybean PD | D13: Soybean Expected Yields
A14: 1900-05-20 | B14: =$B$2+$B$3*A14+$B$4*A14*A14 -> 146.40605 | C14: 1900-05-20 | D14: =$C$2+C14*$C$3+$C$4*C14*C14 -> 51.49538
A15: 1900-05-21 | B15: =$B$2+$B$3*A15+$B$4*A15*A15 -> 144.9265 | C15: 1900-05-21 | D15: =$C$2+C15*$C$3+$C$4*C15*C15 -> 51.47372
A16: 1900-05-22 | B16: 143.41765 | C16: 1900-05-22 | D16: 51.44162
A17: 1900-05-23 | B17: 141.8795 | C17: 1900-05-23 | D17: 51.39908
A18: 1900-05-24 | B18: 140.31205 | C18: 1900-05-24 | D18: 51.3461
A19: 1900-05-25 | B19: 138.7153 | C19: 1900-05-25 | D19: 51.28268
A20: 1900-05-26 | B20: 137.08925 | C20: 1900-05-26 | D20: 51.20882
A21: 1900-05-27 | B21: 135.4339 | C21: 1900-05-27 | D21: 51.12452
A22: 1900-05-28 | B22: 133.74925 | C22: 1900-05-28 | D22: 51.02978
A23: 1900-05-29 | B23: 132.0353 | C23: 1900-05-29 | D23: 50.9246
A24: 1900-05-30 | B24: 130.29205 | C24: 1900-05-30 | D24: 50.80898
A25: 1900-05-31 | B25: 128.5195 | C25: 1900-05-31 | D25: 50.68292
A26: 1900-06-01 | B26: 126.71765 | C26: 1900-06-01 | D26: 50.54642
A27: 1900-06-02 | B27: 124.8865 | C27: 1900-06-02 | D27: 50.39948
A28: 1900-06-03 | B28: 123.02605 | C28: 1900-06-03 | D28: 50.2421
A29: 1900-06-04 | B29: 121.1363 | C29: 1900-06-04 | D29: 50.07428
A30: 1900-06-05 | B30: 119.21725 | C30: 1900-06-05 | D30: 49.89602
A31: 1900-06-06 | B31: 117.2689 | C31: 1900-06-06 | D31: 49.70732
A32: 1900-06-07 | B32: 115.29125 | C32: 1900-06-07 | D32: 49.50818
A33: 1900-06-08 | B33: 113.2843 | C33: 1900-06-08 | D33: 49.2986
A34: 1900-06-09 | B34: 111.24805 | C34: 1900-06-09 | D34: 49.07858
A35: 1900-06-10 | B35: 109.1825 | C35: 1900-06-10 | D35: 48.84812
A36: 1900-06-11 | B36: 107.08765 | C36: 1900-06-11 | D36: 48.60722
A37: 1900-06-12 | B37: 104.9635 | C37: 1900-06-12 | D37: 48.35588
A38: 1900-06-13 | B38: 102.81005 | C38: 1900-06-13 | D38: 48.0941
A39: 1900-06-14 | B39: 100.6273 | C39: 1900-06-14 | D39: 47.82188
A40: 1900-06-15 | B40: 98.41525 | C40: 1900-06-15 | D40: 47.53922
A41: 1900-06-16 | B41: 96.1739 | C41: 1900-06-16 | D41: 47.24612
A42: 1900-06-17 | B42: 93.90325 | C42: 1900-06-17 | D42: 46.94258
A43: 1900-06-18 | B43: 91.6033 | C43: 1900-06-18 | D43: 46.6286
A44: 1900-06-19 | B44: 89.27405 | C44: 1900-06-19 | D44: 46.30418
A45: 1900-06-20 | B45: 86.9155 | C45: 1900-06-20 | D45: 45.96932
A46: 1900-06-21 | B46: 84.52765 | C46: 1900-06-21 | D46: 45.62402
C47: 1900-06-22 | D47: 45.26828
C48: 1900-06-23 | D48: 44.9021
C49: 1900-06-24 | D49: 44.52548
C50: 1900-06-25 | D50: 44.13842
C51: 1900-06-26 | D51: 43.74092
C52: 1900-06-27 | D52: 43.33298
C53: 1900-06-28 | D53: 42.9146
C54: 1900-06-29 | D54: 42.48578
C55: 1900-06-30 | D55: 42.04652
C56: 1900-07-01 | D56: 41.59682
C57: 1900-07-02 | D57: 41.13668
C58: 1900-07-03 | D58: 40.6661
C59: 1900-07-04 | D59: 40.18508
C60: 1900-07-05 | D60: 39.69362
C61: 1900-07-06 | D61: 39.19172
C62: 1900-07-07 | D62: 38.67938
C63: 1900-07-08 | D63: 38.1566
C64: 1900-07-09 | D64: 37.62338
C65: 1900-07-10 | D65: 37.07972
C66: 1900-07-11 | D66: 36.52562
C67: 1900-07-12 | D67: 35.96108
C68: 1900-07-13 | D68: 35.3861
C69: 1900-07-14 | D69: 34.80068
C70: 1900-07-15 | D70: 34.20482
C71: 1900-07-16 | D71: 33.59852
C72: 1900-07-17 | D72: 32.98178
C73: 1900-07-18 | D73: 32.3546
C74: 1900-07-19 | D74: 31.71698
C75: 1900-07-20 | D75: 31.06892
C76: 1900-07-21 | D76: 30.41042
C77: 1900-07-22 | D77: 29.74148
C78: 1900-07-23 | D78: 29.0621
C79: 1900-07-24 | D79: 28.37228
C80: 1900-07-25 | D80: 27.67202
C81: 1900-07-26 | D81: 26.96132
C82: 1900-07-27 | D82: 26.24018
C83: 1900-07-28 | D83: 25.5086
C84: 1900-07-29 | D84: 24.76658
C85: 1900-07-30 | D85: 24.01412
C86: 1900-07-31 | D86: 23.25122
C87: 1900-08-01 | D87: 22.47788
C88: 1900-08-02 | D88: 21.6941
C89: 1900-08-03 | D89: 20.89988
C90: 1900-08-04 | D90: 20.09522

Sheet User Input
D2: User Input
D5: Corn Price | E5: 5.86
D6: Soybean Price | E6: 13.3
D7: Pre-plant Cost Per Acre | E7: 190
D8: Post-plant Cost Corn Per Acre | E8: 490
D9: Cost of Planting Beans Per Acre | E9: 190
D11: Corn APH | E11: 153
D12: Soybean APH | E12: 54
D13: Corn Coverage Level | E13: 0.7
D14: Bean Coverage Level | E14: 0.7
D15: Corn Insurance Premium | E15: 15
D16: Bean Insurance Premium | E16: 15

Sheet model (hidden)
A1: ='User Input'!D5 -> Corn Price | B1: ='User Input'!E5 -> 5.86
A2: ='User Input'!D6 -> Soybean Price | B2: ='User Input'!E6 -> 13.3
A3: ='User Input'!D7 -> Pre-plant Cost Per Acre | B3: ='User Input'!E7 -> 190
A4: ='User Input'!D8 -> Post-plant Cost Corn Per Acre | B4: ='User Input'!E8 -> 490
A5: ='User Input'!D9 -> Cost of Planting Beans Per Acre | B5: ='User Input'!E9 -> 190
A7: ='User Input'!D11 -> Corn APH | B7: 165
A8: ='User Input'!D12 -> Soybean APH | B8: ='User Input'!E12 -> 54
A9: ='User Input'!D13 -> Corn Coverage Level | B9: ='User Input'!E13 -> 0.7
A10: ='User Input'!D14 -> Bean Coverage Level | B10: ='User Input'!E14 -> 0.7
A11: ='User Input'!D15 -> Corn Insurance Premium | B11: ='User Input'!E15 -> 15 | D11: Partial PP corn | E11: =($B$1*$B$7*$B$9*$B$14*$B$15) -> 130.289775
A12: ='User Input'!D16 -> Bean Insurance Premium | B12: ='User Input'!E16 -> 15
A14: PP coverage factor | B14: 0.55
A15: Partial PP factor | B15: 0.35
A17: Plant date | B17: Full Prevented Planting | C17: Late Corn | D17: Insured Beans | E17: 35% + Uninsured Soybeans | G17: Corn days late | H17: Corn insured revenue | I17: Coverage change for corn | K17: Bean day late | L17: Bean Ins Rev | M17: Bean Cov Level
A18: 1900-05-20 | B18: =$B$1*$B$7*$B$9*$B$14 -> 372.2565 | C18: =MAX($B$1*'yield response'!B14,H18)-$B$3-$B$4-$B$11 -> 162.939453 | D18: =MAX($B$2*'yield response'!D14,model!L18)-$B$5-$B$3-$B$12 -> 289.888554 | G18: 1 | H18: =$B$1*$B$7*I18 -> 670.0617 | I18: =($B$9-(0.01*$B$9*G18)) -> 0.693 | K18: 0 | L18: =$B$2*$B$8*M18 -> 502.74 | M18: =($B$10-(0.01*$B$10*K18)) -> 0.7
A19: 1900-05-21 | B19: =$B$1*$B$7*$B$9*$B$14 -> 372.2565 | C19: =MAX($B$1*'yield response'!B15,H19)-$B$3-$B$4-$B$11 -> 154.26929 | D19: =MAX($B$2*'yield response'!D15,model!L19)-$B$5-$B$3-$B$12 -> 289.600476 | G19: 2 | H19: =$B$1*$B$7*I19 -> 663.2934 | I19: 0.686 | K19: 0 | L19: =$B$2*$B$8*M19 -> 502.74 | M19: =($B$10-(0.01*$B$10*K19)) -> 0.7
A20: 1900-05-22 | B20: 372.2565 | C20: =MAX($B$1*'yield response'!B16,H20)-$B$3-$B$4-$B$11 -> 145.427429 | D20: =MAX($B$2*'yield response'!D16,model!L20)-$B$5-$B$3-$B$12 -> 289.173546 | G20: 3 | H20: 656.5251 | I20: 0.679 | K20: 0 | L20: 502.74 | M20: 0.7
A21: 1900-05-23 | B21: 372.2565 | C21: =MAX($B$1*'yield response'!B17,H21)-$B$3-$B$4-$B$11 -> 136.41387 | D21: =MAX($B$2*'yield response'!D17,model!L21)-$B$5-$B$3-$B$12 -> 288.607764 | G21: 4 | H21: 649.7568 | I21: 0.672 | K21: 0 | L21: 502.74 | M21: 0.7
A22: 1900-05-24 | B22: 372.2565 | C22: =MAX($B$1*'yield response'!B18,H22)-$B$3-$B$4-$B$11 -> 127.228613 | D22: =MAX($B$2*'yield response'!D18,model!L22)-$B$5-$B$3-$B$12 -> 287.90313 | G22: 5 | H22: 642.9885 | I22: 0.665 | K22: 0 | L22: 502.74 | M22: 0.7
A23: 1900-05-25 | B23: 372.2565 | C23: =MAX($B$1*'yield response'!B19,H23)-$B$3-$B$4-$B$11 -> 117.871658 | D23: =MAX($B$2*'yield response'!D19,model!L23)-$B$5-$B$3-$B$12 -> 287.059644 | G23: 6 | H23: 636.2202 | I23: 0.658 | K23: 0 | L23: 502.74 | M23: 0.7
A24: 1900-05-26 | B24: 372.2565 | C24: =MAX($B$1*'yield response'!B20,H24)-$B$3-$B$4-$B$11 -> 108.343005 | D24: =MAX($B$2*'yield response'!D20,model!L24)-$B$5-$B$3-$B$12 -> 286.077306 | G24: 7 | H24: 629.4519 | I24: 0.651 | K24: 0 | L24: 502.74 | M24: 0.7
A25: 1900-05-27 | B25: 372.2565 | C25: =MAX($B$1*'yield response'!B21,H25)-$B$3-$B$4-$B$11 -> 98.642654 | D25: =MAX($B$2*'yield response'!D21,model!L25)-$B$5-$B$3-$B$12 -> 284.956116 | G25: 8 | H25: 622.6836 | I25: 0.644 | K25: 0 | L25: 502.74 | M25: 0.7
A26: 1900-05-28 | B26: 372.2565 | C26: =MAX($B$1*'yield response'!B22,H26)-$B$3-$B$4-$B$11 -> 88.770605 | D26: =MAX($B$2*'yield response'!D22,model!L26)-$B$5-$B$3-$B$12 -> 283.696074 | G26: 9 | H26: 615.9153 | I26: 0.637 | K26: 0 | L26: 502.74 | M26: 0.7
A27: 1900-05-29 | B27: 372.2565 | C27: =MAX($B$1*'yield response'!B23,H27)-$B$3-$B$4-$B$11 -> 78.726858 | D27: =MAX($B$2*'yield response'!D23,model!L27)-$B$5-$B$3-$B$12 -> 282.29718 | G27: 10 | H27: 609.147 | I27: 0.63 | K27: 0 | L27: 502.74 | M27: 0.7
A28: 1900-05-30 | B28: 372.2565 | C28: =MAX($B$1*'yield response'!B24,H28)-$B$3-$B$4-$B$11 -> 68.511413 | D28: =MAX($B$2*'yield response'!D24,model!L28)-$B$5-$B$3-$B$12 -> 280.759434 | G28: 11 | H28: 602.3787 | I28: 0.623 | K28: 0 | L28: 502.74 | M28: 0.7
A29: 1900-05-31 | B29: 372.2565 | C29: =MAX($B$1*'yield response'!B25,H29)-$B$3-$B$4-$B$11 -> 58.12427 | D29: =MAX($B$2*'yield response'!D25,model!L29)-$B$5-$B$3-$B$12 -> 279.082836 | G29: 12 | H29: 595.6104 | I29: 0.616 | K29: 0 | L29: 502.74 | M29: 0.7
A30: 1900-06-01 | B30: 372.2565 | C30: =MAX($B$1*'yield response'!B26,H30)-$B$3-$B$4-$B$11 -> 47.565429 | D30: =MAX($B$2*'yield response'!D26,model!L30)-$B$5-$B$3-$B$12 -> 277.267386 | G30: 13 | H30: 588.8421 | I30: 0.609 | K30: 0 | L30: 502.74 | M30: 0.7
A31: 1900-06-02 | B31: 372.2565 | C31: =MAX($B$1*'yield response'!B27,H31)-$B$3-$B$4-$B$11 -> 36.83489 | D31: =MAX($B$2*'yield response'!D27,model!L31)-$B$5-$B$3-$B$12 -> 275.313084 | G31: 14 | H31: 582.0738 | I31: 0.602 | K31: 0 | L31: 502.74 | M31: 0.7
A32: 1900-06-03 | B32: 372.2565 | C32: =MAX($B$1*'yield response'!B28,H32)-$B$3-$B$4-$B$11 -> 25.932653 | D32: =MAX($B$2*'yield response'!D28,model!L32)-$B$5-$B$3-$B$12 -> 273.21993 | G32: 15 | H32: 575.3055 | I32: 0.595 | K32: 0 | L32: 502.74 | M32: 0.7
A33: 1900-06-04 | B33: 372.2565 | C33: =MAX($B$1*'yield response'!B29,H33)-$B$3-$B$4-$B$11 -> 14.858718 | D33: =MAX($B$2*'yield response'!D29,model!L33)-$B$5-$B$3-$B$12 -> 270.987924 | E33: =$B$2*'yield response'!D14-model!$B$5-model!$B$3+model!$E$11-(0.35*$B$11) -> 429.928329 | G33: 16 | H33: 568.5372 | I33: 0.588 | K33: 0 | L33: 502.74 | M33: 0.7 | O33: 1
A34: 1900-06-05 | B34: 372.2565 | C34: =MAX($B$1*'yield response'!B30,H34)-$B$3-$B$4-$B$11 -> 3.613085 | D34: =MAX($B$2*'yield response'!D30,model!L34)-$B$5-$B$3-$B$12 -> 268.617066 | E34: =$B$2*'yield response'!D15-model!$B$5-model!$B$3+model!$E$11-(0.35*$B$11) -> 429.640251 | G34: 17 | H34: 561.7689 | I34: 0.581 | K34: 0 | L34: 502.74 | M34: 0.7 | O34: 2
A35: 1900-06-06 | B35: 372.2565 | C35: =MAX($B$1*'yield response'!B31,H35)-$B$3-$B$4-$B$11 -> -7.804246 | D35: =MAX($B$2*'yield response'!D31,model!L35)-$B$5-$B$3-$B$12 -> 266.107356 | E35: =$B$2*'yield response'!D16-model!$B$5-model!$B$3+model!$E$11-(0.35*$B$11) -> 429.213321 | G35: 18 | H35: 555.0006 | I35: 0.574 | K35: 0 | L35: 502.74 | M35: 0.7 | O35: 3
A36: 1900-06-07 | B36: 372.2565 | C36: =MAX($B$1*'yield response'!B32,H36)-$B$3-$B$4-$B$11 -> -19.393275 | D36: =MAX($B$2*'yield response'!D32,model!L36)-$B$5-$B$3-$B$12 -> 263.458794 | E36: =$B$2*'yield response'!D17-model!$B$5-model!$B$3+model!$E$11-(0.35*$B$11) -> 428.647539 | G36: 19 | H36: 548.2323 | I36: 0.567 | K36: 0 | L36: 502.74 | M36: 0.7
A37: 1900-06-08 | B37: 372.2565 | C37: =MAX($B$1*'yield response'!B33,H37)-$B$3-$B$4-$B$11 -> -31.154002 | D37: =MAX($B$2*'yield response'!D33,model!L37)-$B$5-$B$3-$B$12 -> 260.67138 | E37: =$B$2*'yield response'!D18-model!$B$5-model!$B$3+model!$E$11-(0.35*$B$11) -> 427.942905 | G37: 20 | H37: 541.464 | I37: 0.56 | K37: 0 | L37: 502.74 | M37: 0.7
A38: 1900-06-09 | B38: 372.2565 | C38: =MAX($B$1*'yield response'!B34,H38)-$B$3-$B$4-$B$11 -> -43.086427 | D38: =MAX($B$2*'yield response'!D34,model!L38)-$B$5-$B$3-$B$12 -> 257.745114 | E38: =$B$2*'yield response'!D19-model!$B$5-model!$B$3+model!$E$11-(0.35*$B$11) -> 427.099419 | G38: 21 | H38: 534.6957 | I38: 0.553 | K38: 0 | L38: 502.74 | M38: 0.7
A39: 1900-06-10 | B39: 372.2565 | C39: =MAX($B$1*'yield response'!B35,H39)-$B$3-$B$4-$B$11 -> -55.19055 | D39: =MAX($B$2*'yield response'!D35,model!L39)-$B$5-$B$3-$B$12 -> 254.679996 | E39: =$B$2*'yield response'!D20-model!$B$5-model!$B$3+model!$E$11-(0.35*$B$11) -> 426.117081 | G39: 22 | H39: 527.9274 | I39: 0.546 | K39: 0 | L39: 502.74 | M39: 0.7
A40: 1900-06-11 | B40: 372.2565 | C40: =MAX($B$1*'yield response'!B36,H40)-$B$3-$B$4-$B$11 -> -67.466371 | D40: =MAX($B$2*'yield response'!D36,model!L40)-$B$5-$B$3-$B$12 -> 251.476026 | E40: =$B$2*'yield response'!D21-model!$B$5-model!$B$3+model!$E$11-(0.35*$B$11) -> 424.995891 | G40: 23 | H40: 521.1591 | I40: 0.539 | K40: 0 | L40: 502.74 | M40: 0.7
A41: 1900-06-12 | B41: 372.2565 | C41: =MAX($B$1*'yield response'!B37,H41)-$B$3-$B$4-$B$11 -> -79.91389 | D41: =MAX($B$2*'yield response'!D37,model!L41)-$B$5-$B$3-$B$12 -> 248.133204 | E41: =$B$2*'yield response'!D22-model!$B$5-model!$B$3+model!$E$11-(0.35*$B$11) -> 423.735849 | G41: 24 | H41: 514.3908 | I41: 0.532 | K41: 0 | L41: 502.74 | M41: 0.7
A42: 1900-06-13 | B42: 372.2565 | C42: =MAX($B$1*'yield response'!B38,H42)-$B$3-$B$4-$B$11 -> -92.533107 | D42: =MAX($B$2*'yield response'!D38,model!L42)-$B$5-$B$3-$B$12 -> 244.65153 | E42: =$B$2*'yield response'!D23-model!$B$5-model!$B$3+model!$E$11-(0.35*$B$11) -> 422.336955 | G42: 25 | H42: 507.6225 | I42: 0.525 | K42: 0 | L42: 502.74 | M42: 0.7
A43: 1900-06-14 | B43: 372.2565 | D43: =MAX($B$2*'yield response'!D39,model!L43)-$B$5-$B$3-$B$12 -> 241.031004 | E43: =$B$2*'yield response'!D24-model!$B$5-model!$B$3+model!$E$11-(0.35*$B$11) -> 420.799209 | G43: 26 | H43: 500.8542 | I43: 0.518 | K43: 1 | L43: 497.7126 | M43: 0.693
A44: 1900-06-15 | B44: 372.2565 | D44: =MAX($B$2*'yield response'!D40,model!L44)-$B$5-$B$3-$B$12 -> 237.271626 | E44: =$B$2*'yield response'!D25-model!$B$5-model!$B$3+model!$E$11-(0.35*$B$11) -> 419.122611 | G44: 27 | H44: 494.0859 | I44: 0.511 | K44: 2 | L44: 492.6852 | M44: 0.686
A45: 1900-06-16 | B45: 372.2565 | D45: =MAX($B$2*'yield response'!D41,model!L45)-$B$5-$B$3-$B$12 -> 233.373396 | E45: =$B$2*'yield response'!D26-model!$B$5-model!$B$3+model!$E$11-(0.35*$B$11) -> 417.307161 | G45: 28 | H45: 487.3176 | I45: 0.504 | K45: 3 | L45: 487.6578 | M45: 0.679
A46: 1900-06-17 | B46: 372.2565 | D46: =MAX($B$2*'yield response'!D42,model!L46)-$B$5-$B$3-$B$12 -> 229.336314 | E46: =$B$2*'yield response'!D27-model!$B$5-model!$B$3+model!$E$11-(0.35*$B$11) -> 415.352859 | G46: 29 | H46: 480.5493 | I46: 0.497 | K46: 4 | L46: 482.6304 | M46: 0.672
A47: 1900-06-18 | B47: 372.2565 | D47: =MAX($B$2*'yield response'!D43,model!L47)-$B$5-$B$3-$B$12 -> 225.16038 | E47: =$B$2*'yield response'!D28-model!$B$5-model!$B$3+model!$E$11-(0.35*$B$11) -> 413.259705 | G47: 30 | H47: 473.781 | I47: 0.49 | K47: 5 | L47: 477.603 | M47: 0.665
A48: 1900-06-19 | B48: 372.2565 | D48: =MAX($B$2*'yield response'!D44,model!L48)-$B$5-$B$3-$B$12 -> 220.845594 | E48: =$B$2*'yield response'!D29-model!$B$5-model!$B$3+model!$E$11-(0.35*$B$11) -> 411.027699 | G48: 31 | H48: 467.0127 | I48: 0.483 | K48: 6 | L48: 472.5756 | M48: 0.658
A49: 1900-06-20 | B49: 372.2565 | D49: =MAX($B$2*'yield response'!D45,model!L49)-$B$5-$B$3-$B$12 -> 216.391956 | E49: =$B$2*'yield response'!D30-model!$B$5-model!$B$3+model!$E$11-(0.35*$B$11) -> 408.656841 | G49: 32 | H49: 460.2444 | I49: 0.476 | K49: 7 | L49: 467.5482 | M49: 0.651
A50: 1900-06-21 | B50: 372.2565 | D50: =MAX($B$2*'yield response'!D46,model!L50)-$B$5-$B$3-$B$12 -> 211.799466 | E50: =$B$2*'yield response'!D31-model!$B$5-model!$B$3+model!$E$11-(0.35*$B$11) -> 406.147131 | G50: 33 | H50: 453.4761 | I50: 0.469 | K50: 8 | L50: 462.5208 | M50: 0.644
A51: 1900-06-22 | B51: 372.2565 | D51: =MAX($B$2*'yield response'!D47,model!L51)-$B$5-$B$3-$B$12 -> 207.068124 | E51: =$B$2*'yield response'!D32-model!$B$5-model!$B$3+model!$E$11-(0.35*$B$11) -> 403.498569 | G51: 34 | H51: 446.7078 | I51: 0.462 | K51: 9 | L51: 457.4934 | M51: 0.637
A52: 1900-06-23 | B52: 372.2565 | D52: =MAX($B$2*'yield response'!D48,model!L52)-$B$5-$B$3-$B$12 -> 202.19793 | E52: =$B$2*'yield response'!D33-model!$B$5-model!$B$3+model!$E$11-(0.35*$B$11) -> 400.711155 | G52: 35 | H52: 439.9395 | I52: 0.455 | K52: 10 | L52: 452.466 | M52: 0.63
A53: 1900-06-24 | B53: 372.2565 | D53: =MAX($B$2*'yield response'!D49,model!L53)-$B$5-$B$3-$B$12 -> 197.188884 | E53: =$B$2*'yield response'!D34-model!$B$5-model!$B$3+model!$E$11-(0.35*$B$11) -> 397.784889 | G53: 36 | H53: 433.1712 | I53: 0.448 | K53: 11 | L53: 447.4386 | M53: 0.623
A54: 1900-06-25 | B54: 372.2565 | D54: =MAX($B$2*'yield response'!D50,model!L54)-$B$5-$B$3-$B$12 -> 192.040986 | E54: =$B$2*'yield response'!D35-model!$B$5-model!$B$3+model!$E$11-(0.35*$B$11) -> 394.719771 | G54: 37 | H54: 426.4029 | I54: 0.441 | K54: 12 | L54: 442.4112 | M54: 0.616
A55: 1900-06-26 | B55: 372.2565 | D55: =MAX($B$2*'yield response'!D51,model!L55)-$B$5-$B$3-$B$12 -> 186.754236 | E55: =$B$2*'yield response'!D36-model!$B$5-model!$B$3+model!$E$11-(0.35*$B$11) -> 391.515801 | G55: 38 | H55: 419.6346 | I55: 0.434 | K55: 13 | L55: 437.3838 | M55: 0.609
A56: 1900-06-27 | B56: 372.2565 | D56: =MAX($B$2*'yield response'!D52,model!L56)-$B$5-$B$3-$B$12 -> 181.328634 | E56: =$B$2*'yield response'!D37-model!$B$5-model!$B$3+model!$E$11-(0.35*$B$11) -> 388.172979 | G56: 39 | H56: 412.8663 | I56: 0.427 | K56: 14 | L56: 432.3564 | M56: 0.602
A57: 1900-06-28 | B57: 372.2565 | D57: =MAX($B$2*'yield response'!D53,model!L57)-$B$5-$B$3-$B$12 -> 175.76418 | E57: =$B$2*'yield response'!D38-model!$B$5-model!$B$3+model!$E$11-(0.35*$B$11) -> 384.691305 | G57: 40 | H57: 406.098 | I57: 0.42 | K57: 15 | L57: 427.329 | M57: 0.595
A58: 1900-06-29 | B58: 372.2565 | D58: =MAX($B$2*'yield response'!D54,model!L58)-$B$5-$B$3-$B$12 -> 170.060874 | E58: =$B$2*'yield response'!D39-model!$B$5-model!$B$3+model!$E$11-(0.35*$B$11) -> 381.070779 | K58: 16 | L58: 422.3016 | M58: 0.588
A59: 1900-06-30 | B59: 372.2565 | D59: =MAX($B$2*'yield response'!D55,model!L59)-$B$5-$B$3-$B$12 -> 164.218716 | E59: =$B$2*'yield response'!D40-model!$B$5-model!$B$3+model!$E$11-(0.35*$B$11) -> 377.311401 | K59: 17 | L59: 417.2742 | M59: 0.581
A60: 1900-07-01 | B60: 372.2565 | D60: =MAX($B$2*'yield response'!D56,model!L60)-$B$5-$B$3-$B$12 -> 158.237706 | E60: =$B$2*'yield response'!D41-model!$B$5-model!$B$3+model!$E$11-(0.35*$B$11) -> 373.413171 | K60: 18 | L60: 412.2468 | M60: 0.574
A61: 1900-07-02 | B61: 372.2565 | D61: =MAX($B$2*'yield response'!D57,model!L61)-$B$5-$B$3-$B$12 -> 152.117844 | E61: =$B$2*'yield response'!D42-model!$B$5-model!$B$3+model!$E$11-(0.35*$B$11) -> 369.376089 | K61: 19 | L61: 407.2194 | M61: 0.567
A62: 1900-07-03 | B62: 372.2565 | D62: =MAX($B$2*'yield response'!D58,model!L62)-$B$5-$B$3-$B$12 -> 145.85913 | E62: =$B$2*'yield response'!D43-model!$B$5-model!$B$3+model!$E$11-(0.35*$B$11) -> 365.200155 | K62: 20 | L62: 402.192 | M62: 0.56
A63: 1900-07-04 | B63: 372.2565 | D63: =MAX($B$2*'yield response'!D59,model!L63)-$B$5-$B$3-$B$12 -> 139.461564 | E63: =$B$2*'yield response'!D44-model!$B$5-model!$B$3+model!$E$11-(0.35*$B$11) -> 360.885369 | K63: 21 | L63: 397.1646 | M63: =($B$10-(0.01*$B$10*K63)) -> 0.553
K64: 22 | L64: 392.1372 | M64: 0.546
K65: 23 | L65: 387.1098 | M65: 0.539
K66: 24 | L66: 382.0824 | M66: 0.532
K67: 25 | L67: 377.055 | M67: 0.525
K68: 26 | L68: 372.0276 | M68: 0.518
K69: 27 | L69: 367.0002 | M69: 0.511
K70: 28 | L70: 361.9728 | M70: 0.504
K71: 29 | L71: 356.9454 | M71: 0.497
K72: 30 | L72: 351.918 | M72: 0.49
K73: 31 | L73: 346.8906 | M73: 0.483
K74: 32 | L74: 341.8632 | M74: 0.476
K75: 33 | L75: 336.8358 | M75: 0.469
K76: 34 | L76: 331.8084 | M76: 0.462
K77: 35 | L77: 326.781 | M77: 0.455
K78: 36 | L78: 321.7536 | M78: 0.448
K79: 37 | L79: 316.7262 | M79: 0.441
K80: 38 | L80: 311.6988 | M80: 0.434
K81: 39 | L81: 306.6714 | M81: 0.427
K82: 40 | L82: 301.644 | M82: 0.42
K83: 41 | L83: 296.6166 | M83: 0.413
K84: 42 | L84: 291.5892 | M84: 0.406
K85: 43 | L85: 286.5618 | M85: 0.399
K86: 44 | L86: 281.5344 | M86: 0.392
K87: 45 | L87: 276.507 | M87: 0.385
K88: 46 | L88: 271.4796 | M88: 0.378
K89: 47 | L89: 266.4522 | M89: 0.371
K90: 48 | L90: 261.4248 | M90: 0.364
K91: 49 | L91: 256.3974 | M91: 0.357
K92: 50 | L92: 251.37 | M92: 0.35

Sheet Average Net Returns
B3: User Input
B5: Corn Price | C5: =+'User Input'!E5 -> 5.86
B6: Soybean Price | C6: =+'User Input'!E6 -> 13.3
B7: Pre-plant Cost Per Acre | C7: =+'User Input'!E7 -> 190
B8: Post-plant Cost corn Per Acre | C8: =+'User Input'!E8 -> 490
B9: Cost of Planting Beans Per Acre | C9: =+'User Input'!E9 -> 190
B11: Corn APH | C11: =+'User Input'!E11 -> 153
B12: Soybean APH | C12: =+'User Input'!E12 -> 54
B13: Corn Coverage Level | C13: =+'User Input'!E13 -> 0.7
B14: Bean Coverage Level | C14: =+'User Input'!E14 -> 0.7
B15: Corn Insurance Premium | C15: =+'User Input'!E15 -> 15
B16: Bean Insurance Premium | C16: =+'User Input'!E16 -> 15
B19: Average Net Returns Per Acre
B21: Late Planting | C21: =AVERAGE(model!$C$18:$C$63) -> 43.101281
B22: 100% PP | C22: =AVERAGE(model!$B$18:$B$63) -> 372.2565
B23: 35% + Uninsured Soybeans | C23: =AVERAGE(model!$E$18:$E$63) -> 405.473619
B24: Insured Soybeans | C24: =AVERAGE(model!$D$18:$D$63) -> 237.585639
